[Event "December 12 Early 2023"]
[Site "https://www.chess.com"]
[Date "2023.12.12"]
[Round "4"]
[White "Parfenov, Viktor N."]
[Black "Nasybullina, Alfia"]
[Result "1-0"]
[Board "165"]
[TimeControl "180+1"]
[WhiteFideId "4165969"]
[BlackFideId "4132416"]
[WhiteElo "2498"]
[BlackElo "2286"]
[WhiteTeam "RUS"]
[BlackTeam "KAZ"]
[WhiteClock "0:02:10"]
[BlackClock "0:02:05"]

1. e4 {[%clk 0:03:00]}  c6 {[%clk 0:02:59]} 2. d4 {[%clk 0:02:57]}  d5 {[%clk 0:02:59]} 3. exd5 {[%clk 0:02:57]}  cxd5 {[%clk 0:02:58]} 4. c4 {[%clk 0:02:58]}  Nf6 {[%clk 0:02:56]} 5. Nc3 {[%clk 0:02:57]}  Nc6 {[%clk 0:02:57]} 6. Bg5 {[%clk 0:02:56]}  dxc4 {[%clk 0:02:51]} 7. Bxc4 {[%clk 0:02:56]}  e6 {[%clk 0:02:50]} 8. Nf3 {[%clk 0:02:52]}  Be7 {[%clk 0:02:50]} 9. O-O {[%clk 0:02:53]}  O-O {[%clk 0:02:49]} 10. Re1 {[%clk 0:02:49]}  Nb4 {[%clk 0:02:49]} 11. Ne5 {[%clk 0:02:45]}  Nfd5 {[%clk 0:02:46]} 12. Bd2 {[%clk 0:02:42]}  a6 {[%clk 0:02:36]} 13. a3 {[%clk 0:02:35]}  b5 {[%clk 0:02:24]} 14. Bb3 {[%clk 0:02:25]}  Nxc3 {[%clk 0:02:20]} 15. bxc3 {[%clk 0:02:16]}  Nd5 {[%clk 0:02:19]} 16. Nc6 {[%clk 0:02:15]}  Qc7 {[%clk 0:02:18]} 17. Bxd5 {[%clk 0:02:16]}  Bd6 {[%clk 0:02:12]} 18. Bf3 {[%clk 0:02:11]}  Bb7 {[%clk 0:02:05]} 19. Ne5 {[%clk 0:02:10]} 1-0

[Event "December 12 Early 2023"]
[Site "https://www.chess.com"]
[Date "2023.12.12"]
[Round "4"]
[White "Antonio, Jorge Carlos"]
[Black "Kraiouchkine, Nikita"]
[Result "0-1"]
[Board "166"]
[TimeControl "180+1"]
[WhiteFideId "113190"]
[BlackFideId "2607140"]
[WhiteElo "2305"]
[BlackElo "2496"]
[WhiteTeam "ARG"]
[BlackTeam "CAN"]
[WhiteClock "0:01:39"]
[BlackClock "0:00:16"]

1. d4 {[%clk 0:03:00]}  d5 {[%clk 0:02:59]} 2. Nf3 {[%clk 0:03:00]}  Nf6 {[%clk 0:02:59]} 3. Bf4 {[%clk 0:03:00]}  e6 {[%clk 0:02:56]} 4. e3 {[%clk 0:03:00]}  b6 {[%clk 0:02:56]} 5. c3 {[%clk 0:03:01]}  Bb7 {[%clk 0:02:56]} 6. Bd3 {[%clk 0:03:01]}  Nbd7 {[%clk 0:02:55]} 7. Nbd2 {[%clk 0:03:01]}  Ne4 {[%clk 0:02:55]} 8. O-O {[%clk 0:03:00]}  f5 {[%clk 0:02:41]} 9. Ne5 {[%clk 0:02:58]}  Nxe5 {[%clk 0:02:39]} 10. Bxe5 {[%clk 0:02:58]}  Qd7 {[%clk 0:02:13]} 11. f3 {[%clk 0:02:58]}  Nxd2 {[%clk 0:02:12]} 12. Qxd2 {[%clk 0:02:58]}  Bd6 {[%clk 0:02:12]} 13. f4 {[%clk 0:02:57]}  Bxe5 {[%clk 0:02:09]} 14. fxe5 {[%clk 0:02:57]}  a5 {[%clk 0:02:02]} 15. c4 {[%clk 0:02:56]}  dxc4 {[%clk 0:01:25]} 16. Bxc4 {[%clk 0:02:47]}  Bd5 {[%clk 0:01:24]} 17. Bxd5 {[%clk 0:02:37]}  Qxd5 {[%clk 0:01:23]} 18. Rac1 {[%clk 0:02:37]}  c5 {[%clk 0:01:21]} 19. Qc3 {[%clk 0:02:29]}  cxd4 {[%clk 0:01:12]} 20. exd4 {[%clk 0:02:28]}  O-O {[%clk 0:01:08]} 21. Rfd1 {[%clk 0:02:20]}  Rac8 {[%clk 0:01:02]} 22. Qe3 {[%clk 0:02:09]}  Qxa2 {[%clk 0:00:40]} 23. Rxc8 {[%clk 0:02:05]}  Rxc8 {[%clk 0:00:40]} 24. d5 {[%clk 0:02:05]}  exd5 {[%clk 0:00:37]} 25. e6 {[%clk 0:02:05]}  Qc4 {[%clk 0:00:26]} 26. e7 {[%clk 0:02:01]}  Qe4 {[%clk 0:00:22]} 27. Qxb6 {[%clk 0:01:40]}  Qxe7 {[%clk 0:00:19]} 28. Rxd5 {[%clk 0:01:39]}  Qe1# {[%clk 0:00:16]} 0-1

[Event "December 12 Early 2023"]
[Site "https://www.chess.com"]
[Date "2023.12.12"]
[Round "4"]
[White "Player, Edmund C"]
[Black "GMFYHR1"]
[Result "1-0"]
[Board "168"]
[TimeControl "180+1"]
[WhiteFideId "406520"]
[WhiteElo "2258"]
[BlackElo "2492"]
[WhiteTeam "ENG"]
[WhiteClock "0:00:09"]
[BlackClock "0:00:33"]

1. Nc3 {[%clk 0:03:00]}  d5 {[%clk 0:02:58]} 2. e4 {[%clk 0:03:00]}  dxe4 {[%clk 0:02:58]} 3. Nxe4 {[%clk 0:03:00]}  Bf5 {[%clk 0:02:58]} 4. Ng3 {[%clk 0:03:00]}  Bg6 {[%clk 0:02:58]} 5. Bc4 {[%clk 0:03:00]}  e6 {[%clk 0:02:58]} 6. Nf3 {[%clk 0:03:00]}  Nf6 {[%clk 0:02:58]} 7. d4 {[%clk 0:02:59]}  Nbd7 {[%clk 0:02:58]} 8. O-O {[%clk 0:02:55]}  Be7 {[%clk 0:02:57]} 9. Re1 {[%clk 0:02:51]}  O-O {[%clk 0:02:57]} 10. Nh4 {[%clk 0:02:47]}  c5 {[%clk 0:02:54]} 11. Nxg6 {[%clk 0:02:45]}  hxg6 {[%clk 0:02:54]} 12. Be3 {[%clk 0:02:34]}  Rc8 {[%clk 0:02:50]} 13. Qe2 {[%clk 0:02:28]}  Qc7 {[%clk 0:02:41]} 14. dxc5 {[%clk 0:02:19]}  Bxc5 {[%clk 0:02:40]} 15. Bxc5 {[%clk 0:02:10]}  Qxc5 {[%clk 0:02:41]} 16. Bd3 {[%clk 0:02:10]}  Rfd8 {[%clk 0:02:37]} 17. Rad1 {[%clk 0:02:05]}  Qa5 {[%clk 0:02:33]} 18. a3 {[%clk 0:02:03]}  Qb6 {[%clk 0:02:32]} 19. c4 {[%clk 0:01:52]}  Nc5 {[%clk 0:02:28]} 20. b4 {[%clk 0:01:52]}  Nxd3 {[%clk 0:02:27]} 21. Rxd3 {[%clk 0:01:52]}  Rxd3 {[%clk 0:02:27]} 22. Qxd3 {[%clk 0:01:53]}  Rd8 {[%clk 0:02:27]} 23. Qc2 {[%clk 0:01:36]}  Qd4 {[%clk 0:02:20]} 24. c5 {[%clk 0:01:28]}  a5 {[%clk 0:02:16]} 25. b5 {[%clk 0:01:19]}  Rc8 {[%clk 0:02:05]} 26. c6 {[%clk 0:01:15]}  bxc6 {[%clk 0:02:05]} 27. bxc6 {[%clk 0:01:15]}  Qd6 {[%clk 0:02:04]} 28. Rc1 {[%clk 0:01:13]}  Qxa3 {[%clk 0:02:04]} 29. Rd1 {[%clk 0:00:31]}  Nd5 {[%clk 0:02:02]} 30. Ne4 {[%clk 0:00:31]}  Rc7 {[%clk 0:01:48]} 31. h4 {[%clk 0:00:28]}  a4 {[%clk 0:01:43]} 32. h5 {[%clk 0:00:24]}  gxh5 {[%clk 0:01:42]} 33. Rb1 {[%clk 0:00:22]}  Nb4 {[%clk 0:01:23]} 34. Qc5 {[%clk 0:00:15]}  Rxc6 {[%clk 0:01:00]} 35. Qxb4 {[%clk 0:00:14]}  Qd3 {[%clk 0:00:48]} 36. Kh2 {[%clk 0:00:11]}  Rc4 {[%clk 0:00:40]} 37. Qb8+ {[%clk 0:00:09]}  Kh7 {[%clk 0:00:41]} 38. Ng5+ {[%clk 0:00:09]}  Kg6 {[%clk 0:00:41]} 39. Nf3 {[%clk 0:00:09]}  a3 {[%clk 0:00:33]} 40. Ne5+ {[%clk 0:00:09]} 1-0

[Event "December 12 Early 2023"]
[Site "https://www.chess.com"]
[Date "2023.12.12"]
[Round "4"]
[White "Gutierrez Olivares, Daniel"]
[Black "Mishra, Manoj"]
[Result "1-0"]
[Board "169"]
[TimeControl "180+1"]
[WhiteFideId "2264005"]
[BlackFideId "5006007"]
[WhiteElo "2489"]
[BlackElo "2249"]
[WhiteTeam "ESP"]
[BlackTeam "IND"]
[WhiteClock "0:01:09"]
[BlackClock "0:00:00"]

1. Nf3 {[%clk 0:02:56]}  Nc6 {[%clk 0:02:55]} 2. c4 {[%clk 0:02:56]}  e5 {[%clk 0:02:50]} 3. d4 {[%clk 0:02:56]}  exd4 {[%clk 0:02:49]} 4. Nxd4 {[%clk 0:02:57]}  Nf6 {[%clk 0:02:49]} 5. Nc3 {[%clk 0:02:57]}  Bc5 {[%clk 0:02:48]} 6. Nb3 {[%clk 0:02:56]}  Bb4 {[%clk 0:02:45]} 7. Bd2 {[%clk 0:02:55]}  d6 {[%clk 0:02:45]} 8. g3 {[%clk 0:02:54]}  Qe7 {[%clk 0:02:40]} 9. Bg2 {[%clk 0:02:54]}  Ne5 {[%clk 0:02:36]} 10. Nd4 {[%clk 0:02:25]}  Nxc4 {[%clk 0:01:52]} 11. Qa4+ {[%clk 0:02:21]}  Bd7 {[%clk 0:01:50]} 12. Qxb4 {[%clk 0:02:21]}  Ne5 {[%clk 0:01:44]} 13. Qxb7 {[%clk 0:02:06]}  O-O {[%clk 0:01:35]} 14. O-O {[%clk 0:02:00]}  Rab8 {[%clk 0:01:33]} 15. Qxa7 {[%clk 0:01:55]}  Rxb2 {[%clk 0:01:29]} 16. Bg5 {[%clk 0:01:53]}  h6 {[%clk 0:01:15]} 17. Nd5 {[%clk 0:01:51]}  Nxd5 {[%clk 0:01:06]} 18. Bxe7 {[%clk 0:01:44]}  Nxe7 {[%clk 0:01:07]} 19. Qxc7 {[%clk 0:01:44]}  N7g6 {[%clk 0:00:57]} 20. Qxd6 {[%clk 0:01:40]}  Bg4 {[%clk 0:00:38]} 21. Rfb1 {[%clk 0:01:25]}  Rd2 {[%clk 0:00:33]} 22. Qb4 {[%clk 0:01:22]}  Rxe2 {[%clk 0:00:15]} 23. Nxe2 {[%clk 0:01:19]}  Bxe2 {[%clk 0:00:15]} 24. Qd6 {[%clk 0:01:07]}  Nf3+ {[%clk 0:00:11]} 25. Bxf3 {[%clk 0:01:07]}  Bxf3 {[%clk 0:00:11]} 26. Rb8 {[%clk 0:01:07]}  Rxb8 {[%clk 0:00:08]} 27. Qxb8+ {[%clk 0:01:08]}  Kh7 {[%clk 0:00:09]} 28. a4 {[%clk 0:01:09]}  h5 {[%clk 0:00:08]} 29. a5 {[%clk 0:01:09]}  h4 {[%clk 0:00:09]} 30. a6 {[%clk 0:01:10]}  h3 {[%clk 0:00:08]} 31. Qc8 {[%clk 0:01:10]}  Ne7 {[%clk 0:00:00]} 32. Qd7 {[%clk 0:01:09]} 1-0

[Event "December 12 Early 2023"]
[Site "https://www.chess.com"]
[Date "2023.12.12"]
[Round "4"]
[White "Adelman, Charles"]
[Black "Musalov, Ruslan"]
[Result "1-0"]
[Board "170"]
[TimeControl "180+1"]
[WhiteFideId "2003597"]
[BlackFideId "4141490"]
[WhiteElo "2248"]
[BlackElo "2487"]
[WhiteTeam "USA"]
[BlackTeam "RUS"]
[WhiteClock "0:00:17"]
[BlackClock "0:00:02"]

1. Nf3 {[%clk 0:03:00]}  Nf6 {[%clk 0:02:59]} 2. b3 {[%clk 0:03:01]}  g6 {[%clk 0:02:59]} 3. Bb2 {[%clk 0:03:01]}  Bg7 {[%clk 0:03:00]} 4. g3 {[%clk 0:03:01]}  O-O {[%clk 0:03:01]} 5. Bg2 {[%clk 0:03:02]}  d6 {[%clk 0:03:01]} 6. d4 {[%clk 0:03:02]}  Nbd7 {[%clk 0:03:00]} 7. O-O {[%clk 0:03:02]}  e5 {[%clk 0:03:01]} 8. dxe5 {[%clk 0:03:02]}  Ng4 {[%clk 0:03:02]} 9. c4 {[%clk 0:03:01]}  Ngxe5 {[%clk 0:03:01]} 10. Nxe5 {[%clk 0:03:01]}  Nxe5 {[%clk 0:03:02]} 11. Nc3 {[%clk 0:03:01]}  Nc6 {[%clk 0:02:53]} 12. Qd2 {[%clk 0:03:00]}  a5 {[%clk 0:02:52]} 13. Rad1 {[%clk 0:03:00]}  Be6 {[%clk 0:02:51]} 14. Nd5 {[%clk 0:02:56]}  a4 {[%clk 0:02:43]} 15. Bxg7 {[%clk 0:02:53]}  Kxg7 {[%clk 0:02:44]} 16. Qc3+ {[%clk 0:02:53]}  f6 {[%clk 0:02:44]} 17. Nf4 {[%clk 0:02:48]}  Bf7 {[%clk 0:02:43]} 18. c5 {[%clk 0:02:47]}  axb3 {[%clk 0:02:42]} 19. axb3 {[%clk 0:02:47]}  Ra3 {[%clk 0:02:42]} 20. cxd6 {[%clk 0:02:40]}  Rxb3 {[%clk 0:02:40]} 21. Qc5 {[%clk 0:02:28]}  cxd6 {[%clk 0:02:35]} 22. Rxd6 {[%clk 0:02:28]}  Qb6 {[%clk 0:02:27]} 23. Qxb6 {[%clk 0:02:23]}  Rxb6 {[%clk 0:02:28]} 24. Rc1 {[%clk 0:02:22]}  Rc8 {[%clk 0:02:23]} 25. Rd7 {[%clk 0:02:14]}  Rb2 {[%clk 0:01:55]} 26. Bd5 {[%clk 0:02:10]}  Rf8 {[%clk 0:01:37]} 27. Ne6+ {[%clk 0:02:10]}  Kg8 {[%clk 0:01:37]} 28. Nxf8 {[%clk 0:02:09]}  Bxd5 {[%clk 0:01:38]} 29. Nxg6 {[%clk 0:01:56]}  Be6 {[%clk 0:01:27]} 30. Rd6 {[%clk 0:01:39]}  Kf7 {[%clk 0:01:28]} 31. Nf4 {[%clk 0:01:39]}  Bf5 {[%clk 0:01:28]} 32. Nd5 {[%clk 0:01:28]}  Be6 {[%clk 0:01:23]} 33. Nf4 {[%clk 0:01:23]}  Bf5 {[%clk 0:01:23]} 34. f3 {[%clk 0:01:20]}  Ke7 {[%clk 0:01:12]} 35. Rdxc6 {[%clk 0:01:10]}  bxc6 {[%clk 0:01:11]} 36. Rxc6 {[%clk 0:01:10]}  Kf7 {[%clk 0:01:01]} 37. Kf2 {[%clk 0:01:10]}  Rd2 {[%clk 0:00:59]} 38. g4 {[%clk 0:01:01]}  Bd7 {[%clk 0:00:57]} 39. Rb6 {[%clk 0:00:56]}  Ba4 {[%clk 0:00:29]} 40. Nh5 {[%clk 0:00:49]}  Bd1 {[%clk 0:00:17]} 41. Rxf6+ {[%clk 0:00:48]}  Ke7 {[%clk 0:00:18]} 42. Rh6 {[%clk 0:00:47]}  Rxe2+ {[%clk 0:00:16]} 43. Kg3 {[%clk 0:00:47]}  Re3 {[%clk 0:00:16]} 44. Rxh7+ {[%clk 0:00:44]}  Kf8 {[%clk 0:00:17]} 45. Ra7 {[%clk 0:00:35]}  Rxf3+ {[%clk 0:00:16]} 46. Kh4 {[%clk 0:00:35]}  Rf2 {[%clk 0:00:16]} 47. h3 {[%clk 0:00:34]}  Rh2 {[%clk 0:00:09]} 48. Kg3 {[%clk 0:00:34]}  Rh1 {[%clk 0:00:08]} 49. Nf4 {[%clk 0:00:34]}  Rg1+ {[%clk 0:00:08]} 50. Kh4 {[%clk 0:00:34]}  Rf1 {[%clk 0:00:07]} 51. Kg5 {[%clk 0:00:34]}  Bf3 {[%clk 0:00:04]} 52. Ng6+ {[%clk 0:00:31]}  Kg8 {[%clk 0:00:04]} 53. Ne5 {[%clk 0:00:31]}  Bd5 {[%clk 0:00:04]} 54. h4 {[%clk 0:00:28]}  Re1 {[%clk 0:00:05]} 55. Ng6 {[%clk 0:00:26]}  Be6 {[%clk 0:00:03]} 56. h5 {[%clk 0:00:25]}  Rg1 {[%clk 0:00:02]} 57. Ne5 {[%clk 0:00:24]}  Rg2 {[%clk 0:00:02]} 58. Kf6 {[%clk 0:00:24]}  Bxg4 {[%clk 0:00:02]} 59. Rg7+ {[%clk 0:00:23]}  Kh8 {[%clk 0:00:02]} 60. Rxg4 {[%clk 0:00:22]}  Rf2+ {[%clk 0:00:01]} 61. Kg6 {[%clk 0:00:21]}  Rh2 {[%clk 0:00:02]} 62. h6 {[%clk 0:00:20]}  Rxh6+ {[%clk 0:00:02]} 63. Kf7 {[%clk 0:00:18]}  Rh7+ {[%clk 0:00:02]} 64. Kf8 {[%clk 0:00:18]}  Rh5 {[%clk 0:00:02]} 65. Rg8+ {[%clk 0:00:17]}  Kh7 {[%clk 0:00:02]} 66. Rg7+ {[%clk 0:00:17]}  Kh6 {[%clk 0:00:02]} 67. Nf7# {[%clk 0:00:17]} 1-0

[Event "December 12 Early 2023"]
[Site "https://www.chess.com"]
[Date "2023.12.12"]
[Round "4"]
[White "Dann, Matthias"]
[Black "Srivatsan Karthikeyan"]
[Result "1-0"]
[Board "173"]
[TimeControl "180+1"]
[WhiteFideId "24638056"]
[BlackFideId "25684248"]
[WhiteElo "2473"]
[BlackElo "2227"]
[WhiteTeam "GER"]
[BlackTeam "IND"]
[WhiteClock "0:00:03"]
[BlackClock "0:00:04"]

1. e4 {[%clk 0:03:00]}  e5 {[%clk 0:02:54]} 2. Nf3 {[%clk 0:03:01]}  Nc6 {[%clk 0:02:54]} 3. Bb5 {[%clk 0:03:00]}  a6 {[%clk 0:02:54]} 4. Ba4 {[%clk 0:03:01]}  Nf6 {[%clk 0:02:54]} 5. O-O {[%clk 0:03:02]}  Be7 {[%clk 0:02:54]} 6. Re1 {[%clk 0:03:02]}  b5 {[%clk 0:02:54]} 7. Bb3 {[%clk 0:03:03]}  O-O {[%clk 0:02:54]} 8. a4 {[%clk 0:03:03]}  b4 {[%clk 0:02:53]} 9. d3 {[%clk 0:03:03]}  d6 {[%clk 0:02:53]} 10. a5 {[%clk 0:03:03]}  Bg4 {[%clk 0:02:52]} 11. Be3 {[%clk 0:03:01]}  Rb8 {[%clk 0:02:40]} 12. h3 {[%clk 0:02:56]}  Be6 {[%clk 0:02:40]} 13. Nbd2 {[%clk 0:02:55]}  d5 {[%clk 0:02:33]} 14. Ba4 {[%clk 0:02:29]}  dxe4 {[%clk 0:02:12]} 15. dxe4 {[%clk 0:02:09]}  Nxa5 {[%clk 0:02:07]} 16. Nxe5 {[%clk 0:02:07]}  c5 {[%clk 0:01:58]} 17. Qe2 {[%clk 0:01:45]}  Qb6 {[%clk 0:01:57]} 18. Ndc4 {[%clk 0:01:30]}  Nxc4 {[%clk 0:01:55]} 19. Nxc4 {[%clk 0:01:31]}  Qc7 {[%clk 0:01:51]} 20. g3 {[%clk 0:00:58]}  Rbd8 {[%clk 0:01:32]} 21. Bf4 {[%clk 0:00:56]}  Qa7 {[%clk 0:01:30]} 22. Ne5 {[%clk 0:00:44]}  Bxh3 {[%clk 0:01:04]} 23. Nc6 {[%clk 0:00:42]}  Qb7 {[%clk 0:01:05]} 24. Nxd8 {[%clk 0:00:40]}  Rxd8 {[%clk 0:01:06]} 25. Bb3 {[%clk 0:00:36]}  Bc8 {[%clk 0:00:52]} 26. Bc4 {[%clk 0:00:13]}  Qd7 {[%clk 0:00:18]} 27. Bxa6 {[%clk 0:00:14]}  Bxa6 {[%clk 0:00:18]} 28. Rxa6 {[%clk 0:00:14]}  Qh3 {[%clk 0:00:17]} 29. e5 {[%clk 0:00:11]}  Ng4 {[%clk 0:00:17]} 30. f3 {[%clk 0:00:12]}  Nh6 {[%clk 0:00:16]} 31. e6 {[%clk 0:00:07]}  f6 {[%clk 0:00:14]} 32. Ra7 {[%clk 0:00:08]}  Kf8 {[%clk 0:00:13]} 33. Qf2 {[%clk 0:00:06]}  Nf5 {[%clk 0:00:12]} 34. g4 {[%clk 0:00:04]}  Nd4 {[%clk 0:00:11]} 35. Bg3 {[%clk 0:00:02]}  h5 {[%clk 0:00:07]} 36. c3 {[%clk 0:00:03]}  bxc3 {[%clk 0:00:03]} 37. bxc3 {[%clk 0:00:04]}  Nc6 {[%clk 0:00:04]} 38. Rc7 {[%clk 0:00:04]}  Rd6 {[%clk 0:00:03]} 39. Bxd6 {[%clk 0:00:02]}  Bxd6 {[%clk 0:00:03]} 40. Rxc6 {[%clk 0:00:02]}  Bg3 {[%clk 0:00:04]} 41. e7+ {[%clk 0:00:02]}  Kf7 {[%clk 0:00:04]} 42. e8=Q# {[%clk 0:00:03]} 1-0

[Event "December 12 Early 2023"]
[Site "https://www.chess.com"]
[Date "2023.12.12"]
[Round "4"]
[White "Osmonbekov, Talaibek"]
[Black "Kochiev, Ivan"]
[Result "0-1"]
[Board "174"]
[TimeControl "180+1"]
[WhiteFideId "2017253"]
[BlackFideId "2917890"]
[WhiteElo "2213"]
[BlackElo "2473"]
[WhiteTeam "USA"]
[BlackTeam "BUL"]
[WhiteClock "0:00:00"]
[BlackClock "0:00:03"]

1. d4 {[%clk 0:03:00]}  Nf6 {[%clk 0:02:57]} 2. Nc3 {[%clk 0:03:01]}  d5 {[%clk 0:02:56]} 3. Bf4 {[%clk 0:03:02]}  a6 {[%clk 0:02:56]} 4. e3 {[%clk 0:03:02]}  Bf5 {[%clk 0:02:56]} 5. Nf3 {[%clk 0:03:02]}  e6 {[%clk 0:02:55]} 6. Ne5 {[%clk 0:03:02]}  c5 {[%clk 0:02:55]} 7. g4 {[%clk 0:03:01]}  Bg6 {[%clk 0:02:51]} 8. h4 {[%clk 0:03:01]}  h5 {[%clk 0:02:40]} 9. Nxg6 {[%clk 0:03:00]}  fxg6 {[%clk 0:02:41]} 10. Bd3 {[%clk 0:03:00]}  Nxg4 {[%clk 0:02:39]} 11. Bxg6+ {[%clk 0:02:59]}  Kd7 {[%clk 0:02:39]} 12. dxc5 {[%clk 0:02:48]}  Bxc5 {[%clk 0:02:33]} 13. Nxd5 {[%clk 0:02:46]}  Kc8 {[%clk 0:02:13]} 14. Nc3 {[%clk 0:02:27]}  Qf6 {[%clk 0:01:57]} 15. Ne4 {[%clk 0:01:20]}  Bb4+ {[%clk 0:01:30]} 16. c3 {[%clk 0:01:16]}  Qxg6 {[%clk 0:01:29]} 17. cxb4 {[%clk 0:01:07]}  Qxe4 {[%clk 0:01:25]} 18. Rc1+ {[%clk 0:01:07]}  Nc6 {[%clk 0:01:24]} 19. Qd6 {[%clk 0:00:44]}  e5 {[%clk 0:01:14]} 20. f3 {[%clk 0:00:40]}  Qxf3 {[%clk 0:00:52]} 21. Rf1 {[%clk 0:00:40]}  Qe4 {[%clk 0:00:46]} 22. Qe6+ {[%clk 0:00:13]}  Kb8 {[%clk 0:00:23]} 23. Qd6+ {[%clk 0:00:14]}  Ka7 {[%clk 0:00:19]} 24. Qc5+ {[%clk 0:00:14]}  b6 {[%clk 0:00:17]} 25. Qxc6 {[%clk 0:00:14]}  Qxc6 {[%clk 0:00:18]} 26. Rxc6 {[%clk 0:00:14]}  exf4 {[%clk 0:00:19]} 27. Rxf4 {[%clk 0:00:12]}  Kb7 {[%clk 0:00:13]} 28. Rg6 {[%clk 0:00:12]}  Rhf8 {[%clk 0:00:09]} 29. Rxg7+ {[%clk 0:00:12]}  Kc6 {[%clk 0:00:09]} 30. Rg6+ {[%clk 0:00:11]}  Kb5 {[%clk 0:00:04]} 31. Rg5+ {[%clk 0:00:12]}  Ka4 {[%clk 0:00:05]} 32. b5+ {[%clk 0:00:11]}  Rxf4 {[%clk 0:00:05]} 33. exf4 {[%clk 0:00:09]}  axb5 {[%clk 0:00:05]} 34. Rxh5 {[%clk 0:00:09]}  Rf8 {[%clk 0:00:06]} 35. f5 {[%clk 0:00:08]}  Ne3 {[%clk 0:00:06]} 36. Rg5 {[%clk 0:00:07]}  Nxf5 {[%clk 0:00:04]} 37. h5 {[%clk 0:00:07]}  Nh6 {[%clk 0:00:01]} 38. Rg6 {[%clk 0:00:06]}  Nf5 {[%clk 0:00:01]} 39. Rxb6 {[%clk 0:00:06]}  Rh8 {[%clk 0:00:02]} 40. h6 {[%clk 0:00:05]}  Rxh6 {[%clk 0:00:01]} 41. Rb8 {[%clk 0:00:05]}  Kb4 {[%clk 0:00:01]} 42. Kd2 {[%clk 0:00:04]}  Re6 {[%clk 0:00:02]} 43. a3+ {[%clk 0:00:03]}  Kc4 {[%clk 0:00:02]} 44. b3+ {[%clk 0:00:02]}  Kc5 {[%clk 0:00:02]} 45. Rc8+ {[%clk 0:00:01]}  Rc6 {[%clk 0:00:02]} 46. Rf8 {[%clk 0:00:01]}  Nd6 {[%clk 0:00:02]} 47. Rh8 {[%clk 0:00:00]}  Kb6 {[%clk 0:00:03]} 0-1

[Event "December 12 Early 2023"]
[Site "https://www.chess.com"]
[Date "2023.12.12"]
[Round "4"]
[White "Vincenti, Leonardo"]
[Black "Mestnikov, Aisen"]
[Result "0-1"]
[Board "175"]
[TimeControl "180+1"]
[WhiteFideId "28550820"]
[BlackFideId "34130117"]
[WhiteElo "2226"]
[BlackElo "2471"]
[WhiteTeam "ITA"]
[BlackTeam "RUS"]
[WhiteClock "0:01:15"]
[BlackClock "0:01:59"]

1. e4 {[%clk 0:03:00]}  e5 {[%clk 0:02:59]} 2. Nf3 {[%clk 0:03:00]}  Nc6 {[%clk 0:02:59]} 3. d4 {[%clk 0:03:00]}  exd4 {[%clk 0:03:00]} 4. Nxd4 {[%clk 0:03:01]}  Nf6 {[%clk 0:03:00]} 5. Nc3 {[%clk 0:03:00]}  Bc5 {[%clk 0:02:59]} 6. Nf5 {[%clk 0:02:50]}  O-O {[%clk 0:02:58]} 7. Be3 {[%clk 0:02:50]}  Bxe3 {[%clk 0:02:57]} 8. Nxe3 {[%clk 0:02:49]}  Re8 {[%clk 0:02:56]} 9. f3 {[%clk 0:02:48]}  d6 {[%clk 0:02:48]} 10. Qd2 {[%clk 0:02:46]}  a6 {[%clk 0:02:46]} 11. h4 {[%clk 0:02:44]}  b5 {[%clk 0:02:46]} 12. O-O-O {[%clk 0:02:41]}  Ne5 {[%clk 0:02:34]} 13. Be2 {[%clk 0:02:34]}  Nh5 {[%clk 0:02:29]} 14. Ned5 {[%clk 0:02:11]}  c6 {[%clk 0:02:23]} 15. Nf4 {[%clk 0:02:10]}  Ng3 {[%clk 0:02:18]} 16. Rh2 {[%clk 0:01:56]}  Qf6 {[%clk 0:02:17]} 17. h5 {[%clk 0:01:48]}  h6 {[%clk 0:02:10]} 18. Qe3 {[%clk 0:01:32]}  b4 {[%clk 0:02:07]} 19. Na4 {[%clk 0:01:26]}  Qxf4 {[%clk 0:02:06]} 20. Qxf4 {[%clk 0:01:18]}  Nxe2+ {[%clk 0:02:06]} 21. Kb1 {[%clk 0:01:18]}  Nxf4 {[%clk 0:02:07]} 22. Rxd6 {[%clk 0:01:15]}  Nc4 {[%clk 0:01:59]} 0-1